[Event "Czech Extraliga 2024-25"]
[Site "Czechia"]
[Date "2024.11.02"]
[Round "1.3"]
[White "Haring, Filip"]
[Black "Bernadskiy, Vitaliy"]
[Result "0-1"]
[ECO "C54"]
[WhiteElo "2483"]
[BlackElo "2543"]
[Annotator "TA"]
[PlyCount "66"]
[EventDate "2024.09.12"]
[EventType "team-tourn"]
[EventCountry "CZE"]
[SourceTitle "playchess.com"]
[Source "ChessBase"]
[SourceQuality "1"]
[TimeControl "40/5400+30:1800+30"]

{[%evp 13,66,14,22,10,13,14,11,11,15,14,15,0,0,0,0,0,7,9,4,-21,-16,-29,-8,-9,-6,-8,-15,0,-10,-10,0,0,0,-51,-60,-50,-49,-226,-221,-220,-227,-349,-355,-362,-345,-352,-355,-365,-349,-404,-397,-390,-393,-389,-398]} 1. e4 {[%emt 0:00:06]} e5 {[%emt 0:00:08]} 2. Nf3 {[%emt 0:00:11]} Nc6 {[%emt 0:00:04]} 3. Bc4 {[%emt 0:01:00]} Bc5 {[%emt 0:00:07]} 4. c3 {[%emt 0:00:16]} Nf6 {[%emt 0:00:34]} 5. d3 {[%emt 0:01:58]} d6 {[%emt 0:02:16]} 6. O-O {[%emt 0:01:12]} O-O {[%emt 0:00:14]} 7. Nbd2 {[%emt 0:01:21][%cal Bb1d2,Bd2f1,Bf1g3][%mdl 32]} Bb6 {[%emt 0:03:58]} 8. h3 {[%emt 0:03:54]} Ne7 {[%emt 0:02:55]} 9. Re1 {[%emt 0:09:16]} Ng6 {[%emt 0:01:16]} 10. Nf1 {[%emt 0:00:35] The position is equal.} c6 {[%emt 0:00:48]} 11. Bb3 {[%emt 0:02:01]} d5 {[%emt 0:06:00]} 12. Ng3 {[%emt 0:11:38]} dxe4 {[%emt 0:06:04]} 13. dxe4 {[%emt 0:06:41]} Qxd1 {[%emt 0:04:26]} 14. Rxd1 {[%emt 0:01:11]} a5 {[%emt 0:00:07]} 15. a4 {[%emt 0:07:22]} h6 {[%emt 0:03:11] Against Bg5} 16. Nd2 {[%emt 0:13:16]} Rd8 {[%emt 0:00:55]} 17. Nc4 {[%emt 0:02:11]} Rxd1+ {[%emt 0:03:00]} 18. Bxd1 {[%emt 0:00:05]} Bc7 {[%emt 0:00:02]} 19. Be3 {[%emt 0:02:52]} Be6 {[%emt 0:00:46]} 20. Be2 {[%emt 0:07:20]} Nf4 {[%emt 0:01:38]} 21. Bf1 {[%emt 0:00:27]} h5 {[%emt 0:00:41]} 22. f3 {[%emt 0:03:08]} Rd8 {[%emt 0:00:21]} 23. b4 {[%emt 0:03:34]} ({White should try} 23. h4 $11) 23... axb4 $15 {[%emt 0:02:14]} 24. cxb4 {[%emt 0:00:07]} Nd3 {[%emt 0:00:43]} 25. Na5 {[%emt 0:01:40] Loses the game.} (25. Nb6 $15) 25... Nxb4 $19 {[%emt 0:01:02]} 26. Nxb7 {[%emt 0:09:03]} Rb8 {[%emt 0:00:08]} 27. Bc5 {[%emt 0:05:15]} (27. Nc5 {was the only defense.} Nc2 28. Na6 (28. Nxe6 $2 fxe6 29. Ba7 Nxa1 $19) 28... Nxa1 29. Nxc7) 27... Rxb7 {[%emt 0:00:09]} 28. a5 {[%emt 0:00:04]} Nc2 {[%emt 0:09:51]} 29. Rc1 {[%emt 0:00:53] [#] aiming for a6.} Nd4 {[%emt 0:00:17]} 30. a6 {[%emt 0:00:10]} Rb8 {[%emt 0:00:24][%cal Bb7b8,Bb8a8,Ba8a7][%mdl 32] White must now prevent ...Nb3.} 31. a7 {[%emt 0:06:12]} Ra8 {[%emt 0:00:07] ...Nb3 would now be deadly. Black is winning.} 32. Ba6 {[%emt 0:00:22]} Nb3 {[%emt 0:00:10][%cal Ob3c5] [#] ...Nxc5! is the strong threat.} 33. Bb7 {[%emt 0:00:05]} Rxa7 {[%emt 0:00:12] Weighted Error Value: White=0.28 (precise) /Black=0.02 (flawless) .  Loses game:     	White=1     	---        Mistake:       	White=2     	---        OK:         	White=12    	Black=17     Best:        	---       	Black=3} 0-1

[Event "Czech Extraliga 2024-25"]
[Site "Czechia"]
[Date "2024.11.02"]
[Round "1.3"]
[White "Bouska, Jiri"]
[Black "Neuman, Petr"]
[Result "0-1"]
[ECO "B33"]
[WhiteElo "2227"]
[BlackElo "2426"]
[Annotator "TA"]
[PlyCount "64"]
[EventDate "2024.09.12"]
[EventType "team-tourn"]
[EventCountry "CZE"]
[SourceTitle "playchess.com"]
[Source "ChessBase"]
[SourceQuality "1"]
[TimeControl "40/5400+30:1800+30"]

{[%evp 25,64,0,2,0,4,0,9,11,15,22,77,0,0,0,0,0,0,0,0,-101,-110,-105,-104,-129,-120,-168,-147,-330,-337,-395,-336,-591,-585,-807,-629,-622,-598,-721,-588,-879,-649]} 1. e4 {[%emt 0:00:03]} c5 {[%emt 0:00:09]} 2. Nf3 {[%emt 0:00:10]} Nc6 {[%emt 0:00:10]} 3. d4 {[%emt 0:00:15]} cxd4 {[%emt 0:00:13]} 4. Nxd4 {[%emt 0:00:08]} Nf6 {[%emt 0:00:06]} 5. Nc3 {[%emt 0:00:17]} e5 {[%emt 0:00:22]} 6. Ndb5 {[%emt 0:00:07]} d6 {[%emt 0:00:09]} 7. Nd5 {[%emt 0:00:28]} Nxd5 {[%emt 0:00:15]} 8. exd5 {[%emt 0:00:07]} Nb8 {[%emt 0:00:18]} 9. c4 {[%emt 0:00:37]} Be7 {[%emt 0:00:48]} 10. Bd3 {[%emt 0:00:22]} O-O {[%emt 0:00:33]} 11. O-O {[%emt 0:00:12]} a6 {[%emt 0:03:29]} 12. Nc3 {[%emt 0:00:16]} f5 {[%emt 0:01:33]} 13. f3 {[%emt 0:01:48]} Nd7 {[%emt 0:08:24]} 14. Kh1 {[%emt 0:03:38]} Bg5 {[%emt 0:03:52]} 15. Qc2 {[%emt 0:03:15]} Bxc1 {[%emt 0:21:17]} 16. Raxc1 {[%emt 0:02:22] The position is equal.} Qg5 {[%emt 0:02:26]} 17. b4 {[%emt 0:04:18][%cal Oc4c5]} e4 {[%emt 0:06:39]} 18. Be2 {[%emt 0:21:59]} ({White should play} 18. fxe4 $16 f4 19. c5) 18... exf3 $11 {[%emt 0:07:59]} 19. Bxf3 {[%emt 0:02:18][%cal Oc4c5]} Ne5 {[%emt 0:00:20]} 20. c5 {[%emt 0:00:36]} Bd7 {[%emt 0:00:29]} 21. c6 {[%emt 0:17:07]} ({Don't play} 21. cxd6 Rac8 $15) 21... Nxf3 $40 {[%emt 0:05:28][%mdl 128] White needs to defend precisely.} 22. cxb7 {[%emt 0:04:41]} (22. cxd7 $11 {remains equal.} Ne5 23. Ne2) 22... Rab8 $17 {[%emt 0:02:02]} 23. Rxf3 {[%emt 0:01:41][%cal Oc3e4]} Rxb7 {[%emt 0:00:13]} 24. a3 {[%emt 0:01:29]} Rc7 {[%emt 0:03:31] Black is more active.} 25. Rg3 {[%emt 0:11:03]} (25. h3 $17) 25... Qh6 {[%emt 0:03:13] ...f4 would now be deadly.} 26. Qb2 $2 {[%emt 0:09:20] White does not recover from this.} (26. Rf3 $17 {was worth a try.}) 26... f4 $19 {[%emt 0:02:28]} 27. Rd3 {[%emt 0:02:52]} Bf5 {[%emt 0:01:37]} 28. Rdd1 {[%emt 0:02:35] [#]} (28. Rf3 Bg4 29. Rf2) 28... f3 $1 {[%emt 0:03:32][%mdl 512] Strongly threatening ...Bg4. Black is clearly winning.} 29. Qf2 {[%emt 0:06:32]} (29. Rf1 fxg2+) 29... fxg2+ {[%emt 0:01:49]} 30. Qxg2 {[%emt 0:00:13]} Qe3 {[%emt 0:03:45]} 31. Rg1 {[%emt 0:03:52]} Bg6 {[%emt 0:01:51]} ({Stronger than} 31... Rxc3 32. Qxg7#) 32. Qg3 {[%emt 0:01:16] [#]} Rxc3 $1 {[%emt 0:00:35][%mdl 512] Weighted Error Value: White=0.99/Black=0.34.  Loses game:     	White=1     	---        Mistake:       	White=4     	Black=1      Inaccurate:     	White=2     	---        OK:         	White=3     	Black=5      Best:        	---       	Black=4} 0-1

[Event "Czech Extraliga 2024-25"]
[Site "Czechia"]
[Date "2024.11.02"]
[Round "1.4"]
[White "Jaracz, Pawel"]
[Black "Ludvik, Tomas"]
[Result "1/2-1/2"]
[ECO "C08"]
[WhiteElo "2473"]
[BlackElo "2197"]
[Annotator "TA"]
[PlyCount "47"]
[EventDate "2024.09.12"]
[EventType "team-tourn"]
[EventCountry "CZE"]
[SourceTitle "playchess.com"]
[Source "ChessBase"]
[SourceQuality "1"]
[TimeControl "40/5400+30:1800+30"]

{[%evp 13,47,21,36,0,9,-11,10,0,0,2,0,0,8,20,28,0,0,3,6,0,0,0,0,0,0,0,0,0,0,-9,0,0,0,0,0,0]} 1. e4 {[%emt 0:00:09]} e6 {[%emt 0:00:22]} 2. d4 {[%emt 0:00:26]} d5 {[%emt 0:00:06]} 3. Nd2 {[%emt 0:00:23]} a6 {[%emt 0:00:15]} 4. Ngf3 {[%emt 0:02:09]} c5 {[%emt 0:00:07]} 5. exd5 {[%emt 0:01:06]} exd5 {[%emt 0:00:06]} 6. dxc5 {[%emt 0:02:03]} Bxc5 {[%emt 0:02:07]} 7. Bd3 {[%emt 0:01:56]} Nf6 {[%emt 0:00:39]} 8. O-O {[%emt 0:00:07]} O-O {[%emt 0:00:06]} 9. Nb3 {[%emt 0:02:11]} Bb6 {[%emt 0:00:09]} 10. c3 {[%emt 0:13:15]} Re8 {[%emt 0:07:33]} 11. Nfd4 {[%emt 0:08:44]} Bg4 {[%emt 0:05:07]} 12. Qc2 {[%emt 0:04:02]} Bh5 {[%emt 0:05:24]} 13. Bg5 {[%emt 0:01:44][%cal Od3h7] Strongly threatening Bxh7+!} Bg6 {[%emt 0:00:49]} 14. Rad1 {[%emt 0:04:31]} Nbd7 {[%emt 0:02:24][%cal Bb8d7,Bd7e5,Be5c4][%mdl 32] The position is equal.} 15. Bxg6 {[%emt 0:06:41]} hxg6 {[%emt 0:00:42]} 16. g3 {[%emt 0:00:54]} Ne5 {[%emt 0:08:42]} 17. Kg2 {[%emt 0:01:28]} Qd7 {[%emt 0:01:39]} 18. Rfe1 {[%emt 0:03:26]} Ne4 {[%emt 1:03:13]} 19. Bf4 {[%emt 0:03:40] [#] Hoping for Bxe5.} Nc4 {[%emt 0:00:00]} 20. f3 {[%emt 0:01:15]} Nf6 {[%emt 0:01:00]} 21. Nc1 {[%emt 0:40:50]} Rxe1 {[%emt 0:00:00]} 22. Rxe1 {[%emt 0:00:00]} Bxd4 {[%emt 0:00:00]} 23. cxd4 {[%emt 0:00:00]} Rc8 {[%emt 0:00:00]} 24. Qb3 {[%emt 0:00:00] Prevents Ne3+. An uneventful encounter.   Weighted Error Value: White=0.07 (flawless) /Black=0.02 (flawless) .  OK:         	White=9     	Black=10} 1/2-1/2

[Event "Czech Extraliga 2024-25"]
[Site "Czechia"]
[Date "2024.11.02"]
[Round "1.4"]
[White "Petr, Martin"]
[Black "Dragnev, Valentin"]
[Result "1/2-1/2"]
[ECO "A04"]
[WhiteElo "2468"]
[BlackElo "2566"]
[Annotator "TA"]
[PlyCount "119"]
[EventDate "2024.09.12"]
[EventType "team-tourn"]
[EventCountry "CZE"]
[SourceTitle "playchess.com"]
[Source "ChessBase"]
[SourceQuality "1"]
[TimeControl "40/5400+30:1800+30"]

{[%evp 9,119,-12,-6,-16,-6,-34,-11,-14,0,-10,-4,-31,6,-3,-6,-24,-25,-32,-37,-81,-75,-81,-64,-91,-25,-41,-28,-39,-27,-31,-25,-27,-23,-41,-35,-45,-9,-63,-6,-8,0,0,0,-9,0,0,0,-8,-7,-4,4,8,8,8,62,65,61,35,71,45,80,80,71,71,137,73,88,79,95,67,70,12,12,12,11,4,4,0,0,0,0,0,0,0,0,0,0,0,8,0,0,0,0,0,8,8,8,8,8,8,8,8,8,8,8,8,8,8,8,8,8,8]} 1. Nf3 {[%emt 0:00:04]} Nf6 {[%emt 0:00:10]} 2. g3 {[%emt 0:00:31]} c5 {[%emt 0:01:18]} 3. Bg2 {[%emt 0:01:08]} Nc6 {[%emt 0:00:32]} 4. d4 {[%emt 0:03:39]} cxd4 {[%emt 0:00:36]} 5. Nxd4 {[%emt 0:00:14]} e5 {[%emt 0:00:41]} 6. Nxc6 {[%emt 0:00:08]} dxc6 {[%emt 0:00:18]} 7. Qxd8+ {[%emt 0:02:07]} Kxd8 {[%emt 0:00:02]} 8. Nd2 {[%emt 0:05:28]} Bc5 {[%emt 0:11:28]} 9. Nc4 {[%emt 0:07:46]} Re8 {[%emt 0:01:46]} 10. Be3 {[%emt 0:00:12]} Bf8 {[%emt 0:07:38]} 11. Bg5 {[%emt 0:15:38]} Kc7 {[%emt 0:04:13]} 12. Bxf6 {[%emt 0:03:02]} gxf6 {[%emt 0:00:16]} 13. Ne3 {[%emt 0:00:46]} e4 {[%emt 0:16:22]} 14. g4 {[%emt 0:16:50]} Bc5 {[%emt 0:03:55]} 15. h3 {[%emt 0:01:43] [#]} h5 $1 {[%emt 0:04:48]} 16. Nf5 {[%emt 0:02:22]} (16. gxh5 f5) 16... Rg8 {[%emt 0:13:52]} (16... Bxf5 $17 17. gxf5 Re5) 17. Bxe4 $11 {[%emt 0:03:43]} hxg4 {[%emt 0:00:08]} 18. hxg4 {[%emt 0:06:36]} Rxg4 {[%emt 0:00:43]} 19. Bd3 {[%emt 0:05:44]} Be6 {[%emt 0:08:34]} 20. Ne3 {[%emt 0:01:15]} Rf4 {[%emt 0:03:25]} 21. Nd1 {[%emt 0:05:13]} Rg8 {[%emt 0:04:54]} 22. e3 {[%emt 0:01:50]} Rfg4 {[%emt 0:00:15]} 23. Ke2 {[%emt 0:02:06]} (23. Nc3 $1 $11) 23... Be7 {[%emt 0:03:33]} (23... f5 $15 24. Rh5 R8g5 25. Rxg5 Rxg5) 24. e4 {[%emt 0:01:20]} Bc5 {[%emt 0:07:05]} 25. Ne3 {[%emt 0:00:21] Inhibits f5.} R4g5 {[%emt 0:00:34]} 26. a3 {[%emt 0:02:20]} a5 {[%emt 0:00:47]} 27. a4 {[%emt 0:01:54]} Bd4 {[%emt 0:00:53] A strong pair of Bishops.} 28. c3 {[%emt 0:00:41]} Bc5 {[%emt 0:01:21]} 29. Rh7 {[%emt 0:01:07]} Rg1 {[%emt 0:01:56]} 30. Rxg1 {[%emt 0:02:13]} Rxg1 {[%emt 0:00:01]} 31. Bc4 {[%emt 0:00:07]} Kb6 {[%emt 0:00:53]} (31... Kc8 $11) 32. Bxe6 $14 {[%emt 0:02:30]} fxe6 {[%emt 0:00:01][%mdl 4096] Endgame. KRB-KRN} 33. Rf7 {[%emt 0:01:24]} Rg6 {[%emt 0:02:02]} 34. Nc2 {[%emt 0:02:53]} Rg4 {[%emt 0:01:31]} 35. f3 {[%emt 0:01:07]} ({Much weaker is} 35. Rxf6 $6 Rxe4+ 36. Kd3 Rxa4 $11) 35... Rg6 {[%emt 0:00:46]} 36. Kd3 {[%emt 0:00:29]} e5 {[%emt 0:00:33] [#]} ({Black should play} 36... Bg1) 37. b4 {[%emt 0:01:05]} (37. Kc4 $142 $1) 37... axb4 $16 {[%emt 0:00:11]} 38. cxb4 {[%emt 0:00:03]} Bg1 {[%emt 0:00:47]} 39. Na3 {[%emt 0:00:20] White is more active.} Ka6 {[%emt 0:00:36]} 40. Nc4 {[%emt 0:01:10]} (40. Kc4 $14) 40... b5 $11 {[%emt 0:00:26] The position is equal.} 41. axb5+ {[%emt 0:30:44]} Kxb5 {[%emt 0:01:15]} 42. Rb7+ {[%emt 0:00:00]} Ka4 {[%emt 0:01:29]} 43. Rc7 {[%emt 0:00:00]} Kb5 {[%emt 0:07:07]} 44. Nd6+ {[%emt 0:00:00]} Kxb4 {[%emt 0:08:01]} 45. Rxc6 {[%emt 0:00:00]} Rg3 {[%emt 0:00:10]} 46. Ke2 {[%emt 0:00:00]} Rg2+ {[%emt 0:06:40]} 47. Kf1 {[%emt 0:00:00]} Rg6 {[%emt 0:02:24]} 48. Ne8 {[%emt 0:00:00]} Bc5 {[%emt 0:00:18]} 49. Rxf6 {[%emt 0:00:00]} Rg1+ {[%emt 0:00:15]} 50. Ke2 {[%emt 0:00:00]} Kc3 {[%emt 0:00:31]} 51. f4 {[%emt 0:00:00]} Rg2+ {[%emt 0:00:46]} 52. Kf3 {[%emt 0:00:00]} Rf2+ {[%emt 0:00:19]} 53. Kg3 {[%emt 0:00:00]} exf4+ {[%emt 0:00:42]} 54. Rxf4 {[%emt 0:00:00]} Rxf4 {[%emt 0:00:06]} 55. Kxf4 {[%emt 0:00:00] KB-KN} Bg1 {[%emt 0:01:19]} 56. Kf5 {[%emt 0:00:00]} Bd4 {[%emt 0:00:45]} 57. Nd6 {[%emt 0:00:00] Nb5+ would kill now.} Kd3 {[%emt 0:00:13]} 58. Nf7 {[%emt 0:00:00]} Ba1 {[%emt 0:00:21]} 59. Ne5+ {[%emt 0:00:00]} Ke3 {[%emt 0:00:33]} 60. Nc4+ {[%emt 0:00:00] Weighted Error Value: White=0.11 (very precise) /Black=0.12 (very precise) .  Mistake:       	White=3     	Black=4      Inaccurate:     	White=5     	Black=4      OK:         	White=19    	Black=20     Best:        	White=2     	Black=4} 1/2-1/2

[Event "Czech Extraliga 2024-25"]
[Site "Czechia"]
[Date "2024.11.02"]
[Round "1.4"]
[White "Plat, Vojtech"]
[Black "Neugebauer, Martin"]
[Result "1/2-1/2"]
[ECO "B22"]
[WhiteElo "2464"]
[BlackElo "2525"]
[Annotator "RC"]
[PlyCount "74"]
[EventDate "2024.09.12"]
[EventType "team-tourn"]
[EventCountry "CZE"]
[SourceTitle "playchess.com"]
[Source "ChessBase"]
[SourceQuality "1"]
[TimeControl "40/5400+30:1800+30"]

1. e4 {[%emt 0:00:03]} c5 {[%emt 0:00:20]} 2. c3 {[%emt 0:00:13]} Nf6 {[%emt 0:00:43]} 3. e5 {[%emt 0:00:05]} Nd5 {[%emt 0:00:05]} 4. Nf3 {[%emt 0:00:11]} Nc6 {[%emt 0:00:43]} 5. Bc4 {[%emt 0:00:06]} Nb6 {[%emt 0:00:27]} 6. Bb3 {[%emt 0:00:03]} c4 {[%emt 0:00:45]} 7. Bc2 {[%emt 0:00:01]} d6 {[%emt 0:00:28]} 8. exd6 {[%emt 0:00:06]} Qxd6 {[%emt 0:00:21]} 9. O-O {[%emt 0:00:05]} Bg4 {[%emt 0:01:19]} 10. h3 {[%emt 0:00:06]} Bh5 {[%emt 0:01:47]} 11. Re1 {[%emt 0:00:18]} O-O-O {[%emt 0:05:56]} 12. Na3 {[%emt 0:06:46]} Qf6 {[%emt 0:09:08]} 13. Be4 {[%emt 0:07:40]} Ne5 {[%emt 0:05:42]} 14. g4 {[%emt 0:04:33]} Nxf3+ {[%emt 0:00:23]} 15. Qxf3 {[%emt 0:00:11]} Qxf3 {[%emt 0:00:12]} 16. Bxf3 {[%emt 0:00:01]} Bg6 {[%emt 0:00:09]} 17. b3 {[%emt 0:00:25]} e6 {[%emt 0:05:20]} 18. Nxc4 {[%emt 0:08:38]} Nxc4 {[%emt 0:00:10]} 19. bxc4 {[%emt 0:00:03]} Bd3 {[%emt 0:00:12]} 20. Be2 {[%emt 0:09:14]} Bc5 {[%emt 0:00:29]} 21. a4 {[%emt 0:01:20]} Bxe2 {[%emt 0:06:47]} 22. Rxe2 {[%emt 0:00:03]} Rd3 {[%emt 0:00:05]} 23. Kg2 {[%emt 0:00:16]} Rhd8 {[%emt 0:00:43]} 24. Re5 {[%emt 0:16:58]} b6 {[%emt 0:15:38]} 25. a5 {[%emt 0:06:23]} Kb7 {[%emt 0:00:47]} 26. Ba3 {[%emt 0:04:53]} Bxa3 {[%emt 0:13:07]} 27. Rxa3 {[%emt 0:00:01]} Rc8 {[%emt 0:00:09]} 28. axb6 {[%emt 0:02:13]} axb6 {[%emt 0:00:43]} 29. Rb5 {[%emt 0:00:30]} Rxc4 {[%emt 0:00:30]} 30. Rb2 {[%emt 0:02:13]} Rc7 {[%emt 0:01:53]} 31. Rba2 {[%emt 0:01:08]} Rcd7 {[%emt 0:00:49]} 32. Ra7+ {[%emt 0:00:37]} Kc6 {[%emt 0:00:11]} 33. Rxd7 {[%emt 0:00:06]} Rxd7 {[%emt 0:00:05]} 34. f3 {[%emt 0:00:21]} Rd5 {[%emt 0:08:16]} 35. Kf2 {[%emt 0:00:21]} Ra5 {[%emt 0:05:07]} 36. Rb2 {[%emt 0:00:06]} g5 {[%emt 0:01:06]} 37. Rb4 {[%emt 0:00:57]} Ra1 {[%emt 0:03:54]} 1/2-1/2

[Event "Czech Extraliga 2024-25"]
[Site "Czechia"]
[Date "2024.11.02"]
[Round "1.4"]
[White "Stalmach, Richard"]
[Black "Cernousek, Lukas"]
[Result "1-0"]
[ECO "D20"]
[WhiteElo "2444"]
[BlackElo "2445"]
[Annotator "RC"]
[PlyCount "103"]
[EventDate "2024.09.12"]
[EventType "team-tourn"]
[EventCountry "CZE"]
[SourceTitle "playchess.com"]
[Source "ChessBase"]
[SourceQuality "1"]
[TimeControl "40/5400+30:1800+30"]

1. d4 {[%emt 0:00:03]} d5 {[%emt 0:01:03]} 2. c4 {[%emt 0:00:13]} dxc4 {[%emt 0:00:08]} 3. e4 {[%emt 0:00:08]} b5 {[%emt 0:00:06]} 4. a4 {[%emt 0:00:17]} c6 {[%emt 0:00:06]} 5. axb5 {[%emt 0:00:05]} cxb5 {[%emt 0:00:06]} 6. Nc3 {[%emt 0:00:03]} Qb6 {[%emt 0:00:12]} 7. b3 {[%emt 0:00:52]} e6 {[%emt 0:03:43]} 8. bxc4 {[%emt 0:00:18]} Bb4 {[%emt 0:03:22]} 9. Bd2 {[%emt 0:01:11]} bxc4 {[%emt 0:00:08]} 10. Bxc4 {[%emt 0:00:07]} Ne7 {[%emt 0:00:19]} 11. Nge2 {[%emt 0:00:34]} O-O {[%emt 0:12:50]} 12. O-O {[%emt 0:00:20]} a5 {[%emt 0:00:06]} 13. Na4 {[%emt 0:00:10]} Qc6 {[%emt 0:04:07]} 14. d5 {[%emt 0:00:33]} Qxc4 {[%emt 0:11:06]} 15. Nb6 {[%emt 0:00:15]} Qxe4 {[%emt 0:00:18]} 16. Bxb4 {[%emt 0:03:35]} Qxb4 {[%emt 0:02:14]} 17. Nxa8 {[%emt 0:02:48]} Qb7 {[%emt 0:23:12]} 18. d6 {[%emt 0:05:57]} Nd5 {[%emt 0:00:07]} 19. Nc7 {[%emt 0:08:10]} Nxc7 {[%emt 0:00:31]} 20. Rb1 {[%emt 0:12:46]} Qa7 {[%emt 0:02:27]} 21. dxc7 {[%emt 0:00:07]} Qxc7 {[%emt 0:00:12]} 22. Qd4 {[%emt 0:00:24]} Ba6 {[%emt 0:17:07]} 23. Rfc1 {[%emt 0:03:48]} Nc6 {[%emt 0:12:35]} 24. Qe4 {[%emt 0:01:35]} Bxe2 {[%emt 0:00:06]} 25. Qxe2 {[%emt 0:06:18]} Qe5 {[%emt 0:00:18]} 26. Qxe5 {[%emt 0:00:28]} Nxe5 {[%emt 0:00:08]} 27. Rc5 {[%emt 0:00:43]} Nd3 {[%emt 0:01:39]} 28. Rxa5 {[%emt 0:00:44]} Nf4 {[%emt 0:00:11]} 29. Rba1 {[%emt 0:00:13]} g6 {[%emt 0:01:03]} 30. Ra8 {[%emt 0:01:01]} Rxa8 {[%emt 0:03:22]} 31. Rxa8+ {[%emt 0:00:05]} Kg7 {[%emt 0:00:05]} 32. g3 {[%emt 0:00:11]} Nd5 {[%emt 0:00:05]} 33. Kg2 {[%emt 0:03:50]} h5 {[%emt 0:02:15]} 34. h4 {[%emt 0:01:40]} Kf6 {[%emt 0:01:14]} 35. Ra7 {[%emt 0:00:06]} e5 {[%emt 0:00:56]} 36. Kf3 {[%emt 0:01:42]} Ke6 {[%emt 0:00:08]} 37. Ke4 {[%emt 0:00:26]} Nc3+ {[%emt 0:00:52]} 38. Kd3 {[%emt 0:00:06]} Nb5 {[%emt 0:00:15]} 39. Ra6+ {[%emt 0:02:24]} Kf5 {[%emt 0:00:21]} 40. Kc4 {[%emt 0:04:00]} Nd4 {[%emt 0:00:14]} 41. Kd5 {[%emt 0:30:07]} Nf3 {[%emt 0:16:35]} 42. Ra3 {[%emt 0:00:00]} Nh2 {[%emt 0:08:59]} 43. Kd6 {[%emt 0:00:00]} f6 {[%emt 0:06:04]} 44. Ke7 {[%emt 0:00:00]} g5 {[%emt 0:00:04]} 45. Ra6 {[%emt 0:00:00]} gxh4 {[%emt 0:00:22]} 46. gxh4 {[%emt 0:00:00]} Kg4 {[%emt 0:01:32]} 47. Kxf6 {[%emt 0:00:00]} Kxh4 {[%emt 0:00:06]} 48. Kf5 {[%emt 0:00:34]} Kh3 {[%emt 0:00:01]} 49. Rg6 {[%emt 0:00:25]} h4 {[%emt 0:01:12]} 50. Ke4 {[%emt 0:01:30]} Ng4 {[%emt 0:00:39]} 51. f3 {[%emt 0:00:05]} Nh2 {[%emt 0:00:16]} 52. Rg1 {[%emt 0:01:17]} 1-0

[Event "Czech Extraliga 2024-25"]
[Site "Czechia"]
[Date "2024.11.02"]
[Round "1.4"]
[White "Cvek, Robert"]
[Black "Ragger, Markus"]
[Result "1/2-1/2"]
[ECO "A34"]
[WhiteElo "2437"]
[BlackElo "2579"]
[Annotator "RC"]
[PlyCount "53"]
[EventDate "2024.09.12"]
[EventType "team-tourn"]
[EventCountry "CZE"]
[SourceTitle "playchess.com"]
[Source "ChessBase"]
[SourceQuality "1"]
[TimeControl "40/5400+30:1800+30"]

1. Nf3 {[%emt 0:00:04]} Nf6 {[%emt 0:00:09]} 2. c4 {[%emt 0:00:03]} c5 {[%emt 0:00:05]} 3. Nc3 {[%emt 0:00:47]} d5 {[%emt 0:00:09]} 4. cxd5 {[%emt 0:00:06]} Nxd5 {[%emt 0:00:04]} 5. d4 {[%emt 0:02:39]} Nxc3 {[%emt 0:00:18]} 6. bxc3 {[%emt 0:00:06]} g6 {[%emt 0:00:04]} 7. e3 {[%emt 0:00:32]} Bg7 {[%emt 0:00:05]} 8. Be2 {[%emt 0:00:09]} O-O {[%emt 0:06:36]} 9. O-O {[%emt 0:00:13]} b6 {[%emt 0:04:41]} 10. a4 {[%emt 0:04:51]} Nc6 {[%emt 0:18:05]} 11. Ba3 {[%emt 0:00:36]} cxd4 {[%emt 0:11:25]} 12. cxd4 {[%emt 0:00:08]} Bb7 {[%emt 0:00:05]} 13. Rc1 {[%emt 0:00:39]} Qd7 {[%emt 0:02:47]} 14. Bb5 {[%emt 0:04:02]} a6 {[%emt 0:01:23]} 15. Be2 {[%emt 0:00:22]} Na5 {[%emt 0:08:28]} 16. Rb1 {[%emt 0:04:10]} Bc6 {[%emt 0:01:54]} 17. Ne5 {[%emt 0:06:56]} Bxe5 {[%emt 0:08:42]} 18. dxe5 {[%emt 0:00:13]} Qxd1 {[%emt 0:00:35]} 19. Bxd1 {[%emt 0:02:29]} Nc4 {[%emt 0:08:26]} 20. Bxe7 {[%emt 0:00:40]} Rfe8 {[%emt 0:00:36]} 21. Bd6 {[%emt 0:15:08]} b5 {[%emt 0:17:43]} 22. Rc1 {[%emt 0:01:27]} Bd7 {[%emt 0:02:13]} 23. Bf3 {[%emt 0:06:41]} Ra7 {[%emt 0:00:47]} 24. Bc5 {[%emt 0:00:29]} Rc7 {[%emt 0:00:02]} 25. Bd6 {[%emt 0:00:11]} Ra7 {[%emt 0:00:01]} 26. Bc5 {[%emt 0:00:05]} Rc7 {[%emt 0:00:04]} 27. Bd6 {[%emt 0:00:03]} 1/2-1/2